fUSD/lending_fUSD_20240117
["ID","MTS","AMOUNT","RATE_DAILY","PERIOD"]
[311964769,1705519860160,-500.0,0.00022739,2]
[311964770,1705519860170,-561.13,0.00022739,2]
[311964771,1705519860179,-557.31,0.00022739,2]
[311964772,1705519860189,-482.89,0.00022739,2]
[311964773,1705519860199,-500.0,0.00022739,2]
[311964774,1705519860208,-500.0,0.00022739,2]
[311964775,1705519860218,-2007.77,0.00022739,2]
[311964776,1705519860227,-500.0,0.00022739,2]
[311964777,1705519860236,-500.0,0.00022739,2]
[311964778,1705519860245,-500.0,0.00022739,2]
[311964779,1705519860256,-500.0,0.00022739,2]
[311964780,1705519860265,-310.0,0.00022739,2]
[311964781,1705519860274,-500.0,0.00022739,2]
[311964782,1705519860284,-610.17,0.00022739,2]
[311964783,1705519860294,-154.42,0.0002274,2]
[311964784,1705519860303,-177.46,0.00022758,2]
[311964785,1705519860313,-159.0,0.00022766,2]
[311964786,1705519860322,-159.0,0.00022766,2]
[311964787,1705519860332,-44680.84131715,0.000228,2]
[311964788,1705519860341,-254.25355209,0.000228,2]
[311964789,1705519860350,-549.09,0.00022812,2]
[311964790,1705519860360,-5800.0,0.00022815,2]
[311964791,1705519860370,-5800.0,0.00022824,2]
[311964792,1705519860380,-1943.67,0.00022831,2]
[311964793,1705519860389,-116626.90651037,0.00022832,2]
[311964794,1705519860398,-5800.0,0.00022832,2]
[311964795,1705519860410,-837.14,0.00022838,2]
[311964796,1705519860419,-5800.0,0.00022841,2]
[311964797,1705519860428,-5800.0,0.00022849,2]
[311964798,1705519860438,-5800.0,0.00022858,2]
[311964799,1705519860447,-363.04,0.00022861,2]
[311964800,1705519860456,-5800.0,0.00022866,2]
[311964801,1705519860466,-598.15,0.00022867,2]
[311964802,1705519860475,-5800.0,0.00022875,2]
[311964803,1705519860486,-5800.0,0.00022883,2]
[311964804,1705519860497,-5800.0,0.00022892,2]
[311964805,1705519860507,-5800.0,0.00022892,2]
[311964806,1705519860516,-1009.5007,0.00022899,2]
[311964807,1705519860526,-11065.2,0.000229,2]
[311964808,1705519860535,-5800.0,0.000229,2]
[311964809,1705519860545,-500.9822289,0.000229,2]
[311964810,1705519860555,-166.776333,0.000229,2]
[311964811,1705519860565,-5800.0,0.000229,2]
[311964812,1705519860574,-152.13453955,0.000229,2]
[311964813,1705519860583,-5025.92665602,0.000229,2]
[311964814,1705519860593,-759.86605209,0.000229,2]
[311964815,1705519860603,-219.73663919,0.000229,2]
[311964816,1705519860612,-3456.81471129,0.000229,2]
[311964817,1705519860622,-3626.93047749,0.000229,2]
[311964818,1705519860634,-158.47,0.00022945,2]
[311964819,1705519860644,-620.88,0.00022948,2]
[311964820,1705519860653,-177.46,0.00022966,2]
[311964821,1705519860663,-70537.3228585,0.00022979,2]
[311964822,1705519860673,-1943.67,0.00022979,2]
[311964823,1705519860683,-1943.67,0.00022979,2]
[311964824,1705519860694,-1943.67,0.00022979,2]
[311964825,1705519860703,-1943.67,0.00022979,2]
[311964826,1705519860713,-300.0,0.00022979,2]
[311964827,1705519860724,-300.0,0.00022979,2]
[311964828,1705519860733,-976918.98644047,0.0002298,2]
[311964829,1705519860743,-179.103325,0.00022984,2]
[311964830,1705519860753,-179.103325,0.00022984,2]
[311964831,1705519860762,-179.103325,0.00022984,2]
[311964832,1705519860772,-179.103325,0.00022984,2]
[311964833,1705519860783,-1000.0,0.0002299,6]
[311964834,1705519860792,-1943.67,0.00022993,2]
[311964835,1705519860803,-1943.67,0.00022993,2]
[311964836,1705519860814,-1943.67,0.00022993,2]
[311964837,1705519860824,-1943.67,0.00022993,2]
[311964838,1705519860834,-1943.83,0.00022993,2]
[311964839,1705519860847,-300.0,0.00022994,2]
[311964840,1705519860858,-300.0,0.00022994,2]
[311964841,1705519860872,-5311.930982,0.00022995,2]
[311964842,1705519860883,-7967.896474,0.00022995,2]
[311964843,1705519860892,-10623.861965,0.00022995,2]
[311964844,1705519860902,-818.39975,0.00022995,2]
[311964845,1705519860911,-1227.599625,0.00022995,2]
[311964846,1705519860920,-1636.799501,0.00022995,2]
[311964847,1705519860930,-3039.770501,0.00022995,2]
[311964848,1705519860939,-4559.655752,0.00022995,2]
[311964849,1705519860950,-6079.541003,0.00022995,2]
[311964850,1705519860959,-16694.640231,0.00022995,2]
[311964851,1705519860968,-25041.960346,0.00022995,2]
[311964852,1705519860978,-33389.280462,0.00022995,2]
[311964853,1705519860987,-2871.706267,0.00022995,2]
[311964854,1705519860996,-4307.559401,0.00022995,2]
[311964855,1705519861005,-5743.412534,0.00022995,2]
[311964856,1705519861014,-21674.575527,0.00022995,2]
[311964857,1705519861023,-32511.863291,0.00022995,2]
[311964858,1705519861033,-43349.151054,0.00022995,2]
[311964859,1705519861043,-3273.599001,0.00022995,2]
[311964860,1705519861055,-4910.398502,0.00022995,2]
[311964861,1705519861064,-6547.198003,0.00022995,2]
[311964862,1705519861074,-21247.72393,0.00022995,2]
[311964863,1705519861082,-31871.585895,0.00022995,2]
[311964864,1705519861091,-42495.44786,0.00022995,2]
[311964865,1705519861101,-13279.827456,0.00022996,2]
[311964866,1705519861110,-2045.999376,0.00022996,2]
[311964867,1705519861119,-7599.426254,0.00022996,2]
[311964868,1705519861130,-41736.600578,0.00022996,2]
[311964869,1705519861139,-7179.265668,0.00022996,2]
[311964870,1705519861148,-54186.438818,0.00022996,2]
[311964871,1705519861158,-8183.997504,0.00022996,2]
[311964872,1705519861168,-53119.309826,0.00022996,2]
[311964873,1705519861177,-18591.758439,0.00022997,2]
[311964874,1705519861186,-2864.399127,0.00022997,2]
[311964875,1705519861195,-10639.196756,0.00022997,2]
[311964876,1705519861204,-58431.240809,0.00022997,2]
[311964877,1705519861213,-10050.971935,0.00022997,2]
[311964878,1705519861223,-75861.014345,0.00022997,2]
[311964879,1705519861233,-11457.596506,0.00022997,2]
[311964880,1705519861242,-74367.033756,0.00022997,2]
[311964881,1705519861251,-1038.76477041,0.00022997,2]
[311964882,1705519861261,-21247.723931,0.00022998,2]
[311964883,1705519861271,-3273.599002,0.00022998,2]
[311964884,1705519861280,-12159.082007,0.00022998,2]
[311964885,1705519861290,-66778.560925,0.00022998,2]
[311964886,1705519861299,-11486.825069,0.00022998,2]
[311964887,1705519861308,-86698.302109,0.00022998,2]
[311964888,1705519861317,-13094.396007,0.00022998,2]
[311964889,1705519861327,-84990.895721,0.00022998,2]
[311964890,1705519861337,-300.0,0.00022998,2]
[311964891,1705519861347,-300.0,0.00022998,2]
[311964892,1705519861356,-21247.723931,0.00022999,2]
[311964893,1705519861365,-3273.599002,0.00022999,2]
[311964894,1705519861376,-12159.082007,0.00022999,2]
[311964895,1705519861386,-66778.560925,0.00022999,2]
[311964896,1705519861398,-11486.825069,0.00022999,2]
[311964897,1705519861408,-86698.302109,0.00022999,2]
[311964898,1705519861419,-13094.396007,0.00022999,2]
[311964899,1705519861428,-84990.895721,0.00022999,2]
[311964900,1705519861439,-95464.97986085,0.00022999,2]
[311964901,1705519861448,-1000.0,0.00022999,2]
[311964902,1705519861458,-300.0,0.00022999,2]
[311964903,1705519861468,-300.0,0.00022999,2]
[311964904,1705519861479,-300.0,0.00022999,2]
[311964905,1705519861490,-300.0,0.00022999,2]
[311964906,1705519861502,-300.0,0.00022999,2]
[311964907,1705519861512,-300.0,0.00022999,2]
[311964908,1705519861522,-300.0,0.00022999,2]
[311964909,1705519861532,-300.0,0.00022999,2]
[311964910,1705519861542,-300.0,0.00022999,2]
[311964911,1705519861552,-300.0,0.00022999,2]
[311964912,1705519861562,-300.0,0.00022999,2]
[311964913,1705519861572,-300.0,0.00022999,2]
[311964914,1705519861583,-300.0,0.00022999,2]
[311964915,1705519861592,-300.0,0.00022999,2]
[311964916,1705519861602,-300.0,0.00022999,2]
[311964917,1705519861612,-300.0,0.00022999,2]
[311964918,1705519861622,-300.0,0.00022999,2]
[311964919,1705519861635,-300.0,0.00022999,2]
[311964920,1705519861645,-300.0,0.00022999,2]
[311964921,1705519861657,-300.0,0.00022999,2]
[311964922,1705519861667,-300.0,0.00022999,2]
[311964923,1705519861677,-124394.76918666,0.00023,2]
[311964924,1705519861956,-69698.77547698,0.00023,2]
[311964925,1705519861969,-121232.70778353,0.00023,2]
[311964926,1705519861982,-237339.70244359,0.00023,2]
[311964927,1705519862083,150.0,0.0001797,2]
[311964928,1705519862121,-500.0,0.00021917,2]
[311964929,1705519862132,-357.32066268,0.00021917,2]
[311964930,1705519862163,-142.67933732,0.00021917,2]
[311964931,1705519862172,-603.28961152,0.00021917,2]
[311964932,1705519862182,-500.0,0.00021917,2]
[311964933,1705519862191,-20.61176514,0.00022191,2]
[311964934,1705519862202,-479.38823486,0.00022191,2]
[311964935,1705519862211,-8.02193004,0.00022465,2]
[311964936,1705519862228,-500.0,0.00022191,2]
[311964937,1705519862238,-491.97806996,0.00022465,2]
[311964938,1705519862247,-500.0,0.00022739,2]
[311964939,1705519862256,-5732.84143193,0.00023,2]
[311964940,1705519862443,-2072.73603119,0.00023,2]
[311964941,1705519862509,325.28205835,0.000185,2]
[311964942,1705519862589,-211.00410547,0.00018518,2]
[311964943,1705519862598,-500.0,0.00021917,2]
[311964944,1705519862607,-646.1,0.00021917,2]
[311964945,1705519862616,-500.0,0.00021917,2]
[311964946,1705519862626,-500.0,0.00022465,2]
[311964947,1705519862635,-500.0,0.00022739,2]
[311964948,1705519862644,-2908.70076453,0.00023,2]
[311964949,1705519862924,-255.3972002,0.00021917,2]
[311964950,1705519862936,-254.29549608,0.00021917,2]
[311964951,1705519862945,-146.30730372,0.00021917,2]
[311964952,1705519862963,-353.69269628,0.00021917,2]
[311964953,1705519862972,-1000.0,0.00021917,2]
[311964954,1705519862982,-287.90515921,0.00021917,2]
[311964955,1705519862991,-500.0,0.00021917,2]
[311964956,1705519863000,-500.0,0.00021917,2]
[311964957,1705519863009,-500.0,0.00022191,2]
[311964958,1705519863019,-36573.79205001,0.00023,2]
[311964959,1705519863028,-45587.62831625,0.00023,2]
[311964960,1705519863210,-1556.97918739,0.00023,2]
[311964961,1705519863222,-691.44355304,0.00023,2]
[311964982,1705521031338,-1553.53575242,0.00019004,2]
[311964983,1705521031350,-723.29676624,0.00019004,2]
[311964984,1705521031681,-20.15758728,0.00019004,2]
[311964985,1705521031691,-351.04013354,0.00019005,2]
[311964986,1705521031719,-785.40115437,0.00019005,2]
[311964987,1705521031729,-439.27,0.00019024,2]
[311964988,1705521031738,-909.97884563,0.00019722,5]
[311964989,1705521031758,-2472.68673685,0.00019722,5]
[311964990,1705521031767,-155.0,0.0002,2]
[311964991,1705521031776,-250.0,0.000205,2]
[311964992,1705521031786,-162.58,0.00020601,2]
[311964993,1705521031795,-502.28,0.00020629,2]
[311964994,1705521031804,-334.24,0.00020773,2]
[311964995,1705521031813,-155.66,0.00020917,2]
[311964996,1705521031822,-296.57,0.00020923,2]
[311964997,1705521031832,-150.0,0.00020931,2]
[311964998,1705521031841,-150.0,0.00020931,2]
[311964999,1705521031851,-499.99,0.00020931,2]
[311965000,1705521031860,-1549.87,0.00020932,2]
[311965001,1705521031869,-1755.61,0.00020932,2]
[311965002,1705521031879,-53.33468037,0.00020932,2]
[311965003,1705521031897,-96.66531963,0.00020932,2]
[311965004,1705521031907,-162.58,0.00021116,2]
[311965005,1705521031916,-665.76,0.00021133,2]
[311965006,1705521031925,-296.57,0.00021144,2]
[311965007,1705521031935,-368.1877633,0.00021288,2]
[311965008,1705521031947,-71.0822367,0.00021288,2]
[311965009,1705521031956,-154.42,0.000213,2]
[311965010,1705521031965,-224.4977633,0.00021364,2]
[311965011,1705521031976,-72.0722367,0.00021364,2]
[311965012,1705521031985,-296.57,0.00021584,2]
[311965013,1705521031994,-502.28,0.00021607,2]
[311965014,1705521032003,-1323.63432385,0.00021615,2]
[311965015,1705521032023,-496.20108709,0.00021615,2]
[311965016,1705521032035,-474.7803758,0.00021615,2]
[311965017,1705521032046,-205.38421326,0.00021615,2]
[311965018,1705521032059,-162.58,0.00021631,2]
[311965019,1705521032068,-167.4,0.00021644,2]
[311965020,1705521032077,-896.57742518,0.00021705,2]
[311965021,1705521032086,-1191.4782,0.00021715,2]
[311965022,1705521032095,-1000.0,0.00021715,2]
[311965023,1705521032105,-5692.44916156,0.00021715,2]
[311965024,1705521032123,-709.4372165,0.00021715,2]
[311965026,1705521037530,-427.94418,0.00021715,2]
[311965027,1705521037642,-47997.49783929,0.00021715,2]
[311965028,1705521037655,-40763.72503156,0.00021715,2]
[311965029,1705521037666,-29426.45719933,0.00021715,2]
[311965030,1705521037677,-2345.49457667,0.00021715,2]
[311965031,1705521037704,-5700.0,0.00021715,2]
[311965032,1705521037761,-52878.29095353,0.00021715,2]
[311965259,1705521039924,-303.84007919,0.00021715,2]
[311965266,1705521039981,-660.87471969,0.00021715,2]
[311965273,1705521040037,-1017.80621206,0.00021715,2]
[311965539,1705521042393,-100000.0,0.00021615,2]
[311965543,1705521042404,-7934.25023062,0.00021715,2]
[311965547,1705521042414,-319.59,0.00021786,2]
[311965551,1705521042423,-296.57,0.00021804,2]
[311965554,1705521042432,-157.01830547,0.00021805,2]
[311965557,1705521042441,-697.51118737,0.00021813,2]
[311965560,1705521042450,-532.61615679,0.00021813,2]
[311965563,1705521042459,-295.34208328,0.00021814,2]
[311965566,1705521042467,-40986.86134379,0.00021815,2]
[311965865,1705521045423,-446.66,0.00019101,2]
[311965867,1705521045432,-446.66,0.00021365,2]
[311965869,1705521045443,-1451.24817605,0.00021815,2]
[311965874,1705521045483,-270.9582862,0.00021815,2]
[311965876,1705521045495,-1137.81188775,0.00021815,2]
[311965889,1705521045646,-128220.3551406,0.00021815,2]
[311966058,1705521112886,14132.56655914,6.94e-05,2]
[311966061,1705521219361,544.00662593,0.000145,2]
[311966062,1705521227006,1627.43746019,0.000181,2]
[311966063,1705521245752,1000.0,0.000135,2]
[311966064,1705521245906,282.52643325,0.000125,2]
[311966065,1705521261869,205.58825896,0.0001,2]
[311966067,1705521368537,500.0,0.000288,120]
[311966068,1705521568584,-8728.7254,0.00018805,2]
[311966069,1705521568605,-279.08249628,0.00018895,2]
[311966070,1705521568627,-1136.44128791,0.00018896,2]
[311966071,1705521568647,-29855.75081581,0.00018905,2]
[311966072,1705521725343,-154.44983539,0.00018795,2]
[311966073,1705521725366,-453.31,0.00018878,2]
[311966074,1705521725388,-89.72645838,0.00018905,2]
[311966075,1705521725410,-361.14981153,0.00018905,2]
[311966076,1705521725434,-58.3638947,0.00018905,2]
[311966077,1705522088829,615.0,0.000288,120]
[311966078,1705522090552,544.62,0.00018464,2]
[311966079,1705522151550,164.33,0.0001612,2]
[311966114,1705522231570,-224.70968509,0.00018905,2]
[311966116,1705522231580,-170.22923558,0.00018905,2]
[311966118,1705522231591,-191.66441619,0.00019499,2]
[311966121,1705522231616,-303.88,0.00019499,2]
[311966126,1705522231660,-609.86344662,0.00019499,2]
[311966128,1705522231675,-2084.68886166,0.00019499,2]
[311966130,1705522231685,-122.31792801,0.000195,2]
[311966133,1705522231698,-250.89843054,0.000195,2]
[311966134,1705522231707,-165.75,0.00019977,2]
[311966136,1705522231717,-400.0,0.0002,2]
[311966138,1705522231727,-468.23972946,0.00020142,2]
[311966142,1705522231812,-18.39777205,0.00020142,2]
[311966143,1705522231826,-513.36249849,0.00020142,2]
[311966144,1705522231835,-164.33,0.0002015,2]
[311966145,1705522231845,-1078.32,0.00020258,2]
[311966146,1705522231854,-219.32,0.00020277,2]
[311966147,1705522231863,-160.47,0.00020427,2]
[311966148,1705522231872,-234.8194869,0.00020435,2]
[311966149,1705522231896,-45.86715344,0.00020435,2]
[311966150,1705522231906,-280.68664022,0.00020508,2]
[311966151,1705522231915,-371.36606248,0.00020527,2]
[311966152,1705522231926,-378.06393752,0.00020527,2]
[311966153,1705522231936,-330.28,0.00020527,2]
[311966154,1705522231946,-168.48,0.00020535,2]
[311966155,1705522231955,-2000.0,0.00020548,2]
[311966157,1705522231964,-156.34,0.0002058,2]
[311966159,1705522231974,-280.68664022,0.0002058,2]
[311966161,1705522231983,-280.68664022,0.00020653,2]
[311966163,1705522231993,-280.68664022,0.00020726,2]
[311966165,1705522232002,-544.62,0.00020728,2]
[311966167,1705522232012,-749.43,0.00020743,2]
[311966169,1705522232021,-280.68664022,0.00020799,2]
[311966171,1705522232031,-168.48,0.00020802,2]
[311966173,1705522232041,-418.96973772,0.00020845,2]
[311966175,1705522232051,-164.55,0.0002086,2]
[311966177,1705522232061,-280.68664022,0.00020871,2]
[311966179,1705522232071,-150.0,0.00020915,2]
[311966181,1705522232080,-280.68664022,0.00020944,2]
[311966183,1705522232090,-320.89382844,0.00020959,2]
[311966186,1705522232106,-428.53617156,0.00020959,2]
[311966188,1705522232116,-280.68664022,0.00021017,2]
[311966189,1705522232130,-74.95021033,0.00021064,2]
[311966190,1705522232141,-81.38978967,0.00021064,2]
[311966191,1705522232151,-168.48,0.0002107,2]
[311966192,1705522232161,-280.68664022,0.0002109,2]
[311966193,1705522232171,-155.62,0.00021152,2]
[311966194,1705522232181,-280.68664022,0.00021162,2]
[311966195,1705522232190,-749.43,0.00021175,2]
[311966196,1705522232199,-500.0,0.00021191,2]
[311966197,1705522232209,-189.19899016,0.00021235,2]
[311966198,1705522232221,-91.48765006,0.00021235,2]
[311966199,1705522232230,-742.16584936,0.00021237,2]
[311966200,1705522232242,-336.15415064,0.00021237,2]
[311966201,1705522232251,-47.08185253,0.00021308,2]
[311966202,1705522232264,-233.60478769,0.00021308,2]
[311966203,1705522232273,-168.48,0.00021337,2]
[311966204,1705522232283,-280.68664022,0.00021381,2]
[311966205,1705522232293,-160.47,0.00021388,2]
[311966206,1705522232304,-749.43,0.00021391,2]
[311966207,1705522232313,-248.61163847,0.00021437,2]
[311966208,1705522232323,-80844.99748527,0.00021438,2]
[311966209,1705522232335,-553.31996326,0.00021438,2]
[311966210,1705522232347,-1406.82289289,0.00021438,2]
[311966211,1705522232358,-8756.32257133,0.00021438,2]
[311966212,1705522232374,-543.04659869,0.00021438,2]
[311966214,1705522237634,-26505.11723265,0.00021438,2]
[311966215,1705522237695,-948.984565,0.00021438,2]
[311966216,1705522237707,-948.19036636,0.00021438,2]
[311966217,1705522237761,-415.94592852,0.00021438,2]
[311966218,1705522237773,-68354.86578898,0.00021438,2]
[311966219,1705522237783,-280.68664022,0.00021453,2]
[311966220,1705522237793,-237.6812224,0.00021463,2]
[311966221,1705522237803,-1800.0,0.00021479,2]
[311966222,1705522237813,-280.68664022,0.00021526,2]
[311966223,1705522237823,-156.34,0.00021548,2]
[311966224,1705522237833,-164.55,0.00021556,2]
[311966225,1705522237842,-150.0,0.00021596,2]
[311966226,1705522237851,-280.68664022,0.00021599,2]
[311966227,1705522237861,-168.48,0.00021605,2]
[311966228,1705522237870,-749.43,0.00021607,2]
[311966229,1705522237880,-296.133,0.00021615,2]
[311966230,1705522237892,-1000.0,0.00021615,2]
[311966231,1705522237903,-1000.0,0.00021615,2]
[311966232,1705522237912,-942.8485,0.00021615,2]
[311966233,1705522237923,-296.133,0.00021615,2]
[311966234,1705522237933,-437.8418,0.00021615,2]
[311966235,1705522237943,-10612.61459469,0.00021615,2]
[311966236,1705522237958,-437.70943335,0.00021615,2]
[311966237,1705522237975,-3601.2,0.00021615,2]
[311966238,1705522237987,-283.191,0.00021615,2]
[311966239,1705522238000,-2362.74487196,0.00021615,2]
[311966240,1705522238009,-500.0,0.00021615,2]
[311966241,1705522238019,-1260.4086,0.00021615,2]
[311966242,1705522238029,-2418.26447017,0.00021615,2]
[311966243,1705522238041,-2203.79112983,0.00021615,2]
[311966244,1705522238052,-61824.7459,0.00021615,2]
[311966245,1705522238062,-164.07,0.00021644,2]
[311966246,1705522238071,-280.68664022,0.00021672,2]
[311966247,1705522238082,-218.34785309,0.00021705,2]
[311966248,1705522238092,-622.23474574,0.00021714,3]
[311966249,1705522238102,-340.29888439,0.00021714,2]
[311966250,1705522238111,-46013.21623533,0.00021715,2]
[311966251,1705522238123,-121222.54872924,0.00021715,2]
[311966253,1705522238137,-4938.35587391,0.00021715,2]
[311966256,1705522238149,-376.26,0.00021715,2]
[311966258,1705522238166,-72449.61916152,0.00021715,2]
[311966260,1705522238175,-155.62,0.0002172,2]
[311966262,1705522238185,-280.68664022,0.00021744,2]
[311966265,1705522238194,-800.0,0.00021781,2]
[311966267,1705522238203,-19126.13858845,0.000218,2]
[311966269,1705522238213,-1485.7444332,0.00021803,2]
[311966271,1705522238222,-155.59197994,0.00021803,2]
[311966273,1705522238231,-100000.0,0.00021813,2]
[311966275,1705522238241,-532.70124362,0.00021813,2]
[311966277,1705522238250,-158.16661802,0.00021813,2]
[311966279,1705522238259,-1641.24110276,0.00021813,2]
[311966281,1705522238268,-486.39012387,0.00021813,2]
[311966283,1705522238277,-273.55023891,0.00021813,2]
[311966285,1705522238286,-3001.53867376,0.00021813,2]
[311966287,1705522238295,-188.82590285,0.00021813,2]
[311966289,1705522238304,-217.43053943,0.00021813,2]
[311966291,1705522238314,-1272.40788958,0.00021813,2]
[311966293,1705522238324,-3141.15835728,0.00021813,2]
[311966295,1705522238334,-1571.93174963,0.00021813,2]
[311966297,1705522238343,-338.37923961,0.00021813,2]
[311966299,1705522238352,-162.31127784,0.00021813,2]
[311966301,1705522238362,-156.23379136,0.00021813,2]
[311966303,1705522238371,-160.72539687,0.00021813,2]
[311966305,1705522238380,-177.10393837,0.00021813,2]
[311966307,1705522238393,-184.17252999,0.00021813,2]
[311966309,1705522238405,-1202.14844517,0.00021813,2]
[311966311,1705522238414,-816.6031777,0.00021813,2]
[311966313,1705522238423,-308.0958427,0.00021814,2]
[311966315,1705522238432,-942.97274206,0.00021815,2]
[311966330,1705522238441,-166.776333,0.00021815,2]
[311966331,1705522238722,-368.46532842,0.00021815,2]
[311966332,1705522238732,-368.46532842,0.00021816,2]
[311966333,1705522238741,-8085.09981905,0.00021817,2]
[311966334,1705522238751,-166.1275089,0.00021817,2]
[311966335,1705522238760,-157.3411921,0.00021817,2]
[311966336,1705522238769,-368.46532842,0.00021817,2]
[311966337,1705522238778,-280.68664022,0.00021817,2]
[311966338,1705522238788,-270.25827341,0.00021817,2]
[311966339,1705522238797,-537.97032286,0.00021817,2]
[311966340,1705522238807,-749.43,0.00021823,2]
[311966341,1705522238817,-1485.7444332,0.00021907,2]
[311966342,1705522238826,-550.36977471,0.00021911,2]
[311966343,1705522238835,-227.62042187,0.00021912,2]
[311966344,1705522238845,-200.0,0.00021913,2]
[311966345,1705522238854,-308.0,0.00021913,2]
[311966346,1705522238864,-288.34262207,0.00021913,2]
[311966347,1705522238873,-301.66864087,0.00021913,2]
[311966348,1705522238883,-281.94504763,0.00021913,2]
[311966349,1705522238893,-155.84109243,0.00021913,2]
[311966350,1705522238902,-265.86409049,0.00021913,2]
[311966351,1705522238912,-336.7179586,0.00021913,2]
[311966352,1705522238921,-253.03478513,0.00021913,2]
[311966353,1705522238930,-223.63377788,0.00021913,2]
[311966354,1705522238940,-155.21024572,0.00021913,2]
[311966355,1705522238949,-578.97126269,0.00021913,2]
[311966356,1705522238959,-309.999998,0.00021913,2]
[311966357,1705522238968,-1041.93851445,0.00021913,2]
[311966358,1705522238977,-263.78766681,0.00021913,2]
[311966359,1705522238986,-528.34979913,0.00021913,2]
[311966360,1705522238996,-23774.15990053,0.00021913,2]
[311966361,1705522239006,-1380.62051341,0.00021913,2]
[311966362,1705522239015,-662.88903464,0.00021913,2]
[311966363,1705522239024,-228.34295741,0.00021913,2]
[311966364,1705522239035,-155.50156782,0.00021913,2]
[311966365,1705522239044,-244.02773352,0.00021913,2]
[311966366,1705522239054,-570.34423517,0.00021913,2]
[311966367,1705522239064,-182.16712069,0.00021913,2]
[311966368,1705522239073,-155.0,0.00021913,2]
[311966369,1705522239082,-155.48692746,0.00021913,2]
[311966370,1705522239092,-236.76585008,0.00021913,2]
[311966371,1705522239102,-765.80999369,0.00021913,2]
[311966372,1705522239112,-33726.46092824,0.00021913,2]
[311966373,1705522239121,-183.31693013,0.00021913,2]
[311966374,1705522239131,-155.3991,0.00021913,2]
[311966375,1705522239143,-383.68557165,0.00021913,2]
[311966376,1705522239155,-155.51550435,0.00021913,2]
[311966377,1705522239165,-2018.10308734,0.00021913,2]
[311966378,1705522239174,-156.54303482,0.00021913,2]
[311966379,1705522239184,-172.20841786,0.00021913,2]
[311966380,1705522239193,-370.09331606,0.00021913,2]
[311966381,1705522239202,-155.0,0.00021913,2]
[311966382,1705522239211,-650.93242009,0.00021913,2]
[311966383,1705522239220,-253.34478463,0.00021913,2]
[311966384,1705522239230,-1043.80845818,0.00021913,2]
[311966385,1705522239240,-162.54625844,0.00021913,2]
[311966386,1705522239249,-1267.18814382,0.00021913,2]
[311966387,1705522239259,-3930.60839298,0.00021913,2]
[311966388,1705522239268,-391.20892469,0.00021913,2]
[311966389,1705522239277,-163.66688054,0.00021914,2]
[311966390,1705522239287,-2618.74812066,0.00021914,2]
[311966391,1705522239297,-431050.6596952,0.00021915,2]
[311966392,1705522239306,-318.65326446,0.00021915,2]
[311966393,1705522239316,-403.58999076,0.00021915,2]
[311966394,1705522239326,-8085.09981897,0.00021915,2]
[311966395,1705522239336,-395.88847692,0.00021916,2]
[311966396,1705522239345,-156.1273939,0.00021916,2]
[311966397,1705522239354,-12828.61471541,0.00021916,2]
[311966398,1705522239364,-300074.75417184,0.00021916,2]
[311966399,1705522239373,-501.55500717,0.00021917,2]
[311966401,1705522239382,-500.0,0.00021917,2]
[311966403,1705522239394,-500.0,0.00021917,2]
[311966404,1705522239404,-500.0,0.00021917,2]
[311966405,1705522239413,-500.0,0.00021917,2]
[311966406,1705522239422,-500.0,0.00021917,2]
[311966407,1705522239432,-500.0,0.00021917,2]
[311966408,1705522239441,-500.0,0.00021917,2]
[311966409,1705522239451,-324.27270134,0.00021917,2]
[311966410,1705522239460,-501.58432659,0.00021917,2]
[311966411,1705522239469,-500.0,0.00021917,2]
[311966412,1705522239478,-500.0,0.00021917,2]
[311966413,1705522239487,-501.24272568,0.00021917,2]
[311966414,1705522239497,-501.15592614,0.00021917,2]
[311966415,1705522239506,-500.0,0.00021917,2]
[311966416,1705522239515,-628.29178127,0.00021917,2]
[311966417,1705522239525,-229.89109149,0.00021917,2]